[Event "Kezmarok Chess Open 2022"]
[Site "Kezmarok"]
[Date "2022.10.01"]
[Round "9.7"]
[White "Bochnickova, Simona"]
[Black "Smetana, Peter"]
[Result "0-1"]
[ECO "B32"]
[WhiteElo "1903"]
[BlackElo "1715"]
[Annotator "TA"]
[PlyCount "120"]
[EventDate "2022.09.24"]
[EventType "swiss"]
[EventCountry "SVK"]
[SourceTitle "playchess.com"]
[Source "ChessBase"]
[SourceQuality "1"]
[TimeControl "40/5400+30:1800+30"]

{[%evp 11,120,30,25,25,44,47,47,42,50,38,66,71,53,54,57,62,69,42,68,53,81,80,85,93,75,63,87,67,85,104,100,92,99,59,40,40,45,92,77,72,69,91,67,43,99,97,106,101,112,107,122,92,90,108,262,115,284,200,349,339,334,0,0,0,0,0,0,0,0,0,0,0,0,0,0,-67,-67,-74,-68,-87,-74,-70,-83,-83,-78,-306,-285,-454,-454,-454,-454,-438,-419,-493,-454,-630,-592,-666,-644,-798,-805,-754,-764,-863,-858,-5185,-5163,-6099,-5069,-29988,-29989]} 1. e4 {[%emt 0:00:02]} c5 {[%emt 0:00:38]} 2. Nf3 {[%emt 0:00:06][%cal Bg1f3,Bf3d4,Bd4b5,Bb5c3,Bc3d5][%mdl 32]} Nc6 {[%emt 0:00:08]} 3. d4 {[%emt 0:00:06]} cxd4 {[%emt 0:00:07]} 4. Nxd4 {[%emt 0:00:11]} e5 {[%emt 0:00:12]} 5. Nb5 {[%emt 0:00:07]} d6 {[%emt 0:00:28]} 6. c4 {[%emt 0:00:05]} Be7 {[%emt 0:00:33] 6...Be6 gains popularity.} 7. N5c3 {[%emt 0:00:34] B32: Sicilian: Löwenthal and Kalashnikov Variations.} f5 {[%emt 0:01:22]} 8. exf5 {[%emt 0:00:06]} Bxf5 {[%emt 0:00:28]} 9. Bd3 {[%emt 0:00:13] White is slightly better.} Be6 {[%emt 0:02:08]} 10. Nd5 {[%emt 0:00:12]} Nf6 {[%emt 0:01:49]} 11. Nbc3 {[%emt 0:00:06]} O-O {[%emt 0:00:54]} 12. O-O {[%emt 0:00:06]} Kh8 {[%emt 0:07:51] [#]} 13. Nxf6 $146 {[%emt 0:04:05]} (13. Be3 Rc8 14. Rc1 Ng4 15. Qc2 Nd4 16. Qa4 Bg5 17. Be4 Bxd5 18. Bxg5 Qxg5 19. Bxd5 Rxf2 20. h3 Qe3 21. Kh1 Rcf8 22. Rfe1 Qxe1+) (13. h3 {is more complex.} Nd4 14. Nxf6 Bxf6 15. Qh5) ({Predecessor:} 13. Be3 Rc8 14. Rc1 Ng4 15. Qc2 Nd4 16. Qa4 Bg5 17. Be4 Bxd5 18. Bxg5 Qxg5 19. Bxd5 Rxf2 20. h3 Qe3 21. Kh1 Rcf8 22. Rfe1 Qxe1+ {0-1 (22) Rogulj,B (2363)-Radusinovic,L (2348) Bihac 2022}) 13... gxf6 {[%emt 0:09:02]} 14. Nd5 {[%emt 0:12:11]} f5 {[%emt 0:09:20]} 15. b3 {[%emt 0:02:49]} Bf6 {[%emt 0:09:05]} 16. Nxf6 {[%emt 0:06:53]} Qxf6 {[%emt 0:01:02]} 17. Bb2 {[%emt 0:04:38]} f4 {[%emt 0:06:59]} 18. Be4 {[%emt 0:07:30] aiming for Bxc6. This bishop pair is nice.} (18. Qh5 $6 Qg7 $11) 18... Rad8 {[%emt 0:01:40]} 19. Qd2 {[%emt 0:03:53]} ({Of course not} 19. Qh5 Qg7 $11) 19... Bf5 {[%emt 0:01:39]} 20. Bf3 {[%emt 0:00:50]} Bc8 {[%emt 0:02:28]} 21. Rad1 {[%emt 0:01:28]} Rg8 {[%emt 0:02:36]} 22. Qe2 {[%emt 0:11:27][%cal Od1d6]} Bh3 $1 {[%emt 0:01:12][%cal Oh3g2]} 23. Kh1 {[%emt 0:00:48]} Bxg2+ {[%emt 0:05:52]} 24. Bxg2 {[%emt 0:00:06]} Rxg2 {[%emt 0:00:12]} 25. Kxg2 {[%emt 0:00:05]} f3+ {[%emt 0:00:25]} 26. Qxf3 {[%emt 0:00:05]} Rg8+ {[%emt 0:00:08]} 27. Qg3 $1 {[%emt 0:00:04]} Rxg3+ {[%emt 0:00:27]} ({Black should try} 27... h5 $1 $14) 28. fxg3 $16 {[%emt 0:01:28]} Qg6 {[%emt 0:00:36]} 29. Rf8+ {[%emt 0:02:12]} Kg7 {[%emt 0:00:08] [#]} 30. Rdf1 $36 {[%emt 0:00:26][%mdl 2048] Black is under strong pressure.} Qe4+ {[%emt 0:00:49]} 31. Kh3 {[%emt 0:00:12]} h5 {[%emt 0:02:42]} 32. R8f4 {[%emt 0:09:49]} Qc2 {[%emt 0:03:26]} (32... Qg6 $16 {was worth a try.}) 33. R1f2 {[%emt 0:04:13]} (33. Rf7+ Kg8 34. Rf8+ Kh7 35. Bc1) (33. Rf7+ $18 {is the precise move to win.} Kg8 34. Rf8+ Kh7 35. Bc1) 33... Qd3 $2 {[%emt 0:04:36]} (33... Qd1 $16 {is a better defense.}) 34. Rf5 {[%emt 0:03:50]} Qd1 {[%emt 0:01:12] [#]} (34... Qe3 $142 35. Kh4 Ne7 36. Rf7+ Kh6) 35. Rg5+ $1 $18 {[%emt 0:00:40]} Kh6 {[%emt 0:01:09]} 36. Rff5 {[%emt 0:06:19]} (36. Kh4 $18) 36... Ne7 $11 {[%emt 0:03:23]} 37. Rxh5+ {[%emt 0:08:50]} Kg6 {[%emt 0:00:22]} 38. Rhg5+ {[%emt 0:00:08]} Kh6 {[%emt 0:00:10] Active counter play!} 39. Rh5+ {[%emt 0:00:05]} Kg6 {[%emt 0:00:29]} 40. Rfg5+ {[%emt 0:04:12]} Kf6 {[%emt 0:00:18] The board is on fire.} 41. Ba3 {[%emt 0:30:51]} Qf1+ {[%emt 0:30:44]} 42. Kh4 {[%emt 0:00:13]} Ng6+ {[%emt 0:00:36]} 43. Rxg6+ {[%emt 0:00:06]} Kxg6 {[%emt 0:00:08][%mdl 4096] Endgame KQ-KRB} 44. Rg5+ {[%emt 0:00:09]} Kf7 {[%emt 0:01:07] Hoping for ...Qf2.} 45. Bxd6 {[%emt 0:00:53]} Qf2 {[%emt 0:00:59][%csl LRa2,LRh2] ...Qd4+ is the strong threat.} 46. Bxe5 {[%emt 0:08:10]} Qxh2+ {[%emt 0:00:23]} 47. Kg4 {[%emt 0:00:09]} Qxa2 {[%emt 0:00:25]} 48. Kf5 $2 {[%emt 0:02:03]} (48. Rf5+ $17 Ke6 49. Bd4) 48... Qc2+ $19 {[%emt 0:00:08]} ({Inferior is} 48... Qxb3 49. Rg7+ Kf8 50. Rc7 $17) 49. Kg4 {[%emt 0:00:00]} (49. Kf4 $142) 49... Qxb3 {[%emt 0:00:00]} 50. c5 {[%emt 0:00:00]} Qc4+ {[%emt 0:00:00]} 51. Bf4 {[%emt 0:00:00]} Qe6+ {[%emt 0:00:00]} 52. Kf3 {[%emt 0:00:00]} a5 {[%emt 0:00:00][%cal Ba7a5,Ba5a4,Ba4a3][%mdl 32]} 53. g4 {[%emt 0:00:00]} Qb3+ {[%emt 0:00:00]} 54. Ke4 {[%emt 0:00:00]} Qc4+ {[%emt 0:00:00]} 55. Ke3 {[%emt 0:00:00]} a4 {[%emt 0:00:00] And now ...a3 would win.} 56. Rf5+ {[%emt 0:00:00]} Ke6 {[%emt 0:00:00] White must now prevent ...a3.} 57. Rh5 {[%emt 0:00:00]} a3 {[%emt 0:00:00]} 58. c6 {[%emt 0:00:00]} Qc3+ {[%emt 0:00:00]} 59. Ke2 {[%emt 0:00:00]} bxc6 {[%emt 0:00:00] ( -> ...a2)} 60. Be5 {[%emt 0:00:00]} Qxe5+ {[%emt 0:00:00] Never resign too early!  Weighted Error Value: White=0.66/Black=0.18 (very precise)} 0-1

[Event "Kezmarok Chess Open 2022"]
[Site "Kezmarok"]
[Date "2022.10.01"]
[Round "9.8"]
[White "Mirowska, Oliwia"]
[Black "Fizer, Marek"]
[Result "0-1"]
[ECO "D02"]
[WhiteElo "1856"]
[BlackElo "1963"]
[Annotator "TA"]
[PlyCount "70"]
[EventDate "2022.09.24"]
[EventType "swiss"]
[EventCountry "SVK"]
[SourceTitle "playchess.com"]
[Source "ChessBase"]
[SourceQuality "1"]
[TimeControl "40/5400+30:1800+30"]

{[%evp 9,70,18,22,0,10,4,1,5,7,-4,-2,-6,-8,-14,-10,-29,-37,-31,-27,-59,-8,-76,-73,-78,-80,-79,-36,-40,-32,-73,-62,-90,-84,-74,-72,-60,-47,-49,-42,-55,-33,-130,11,13,14,-65,-62,-71,-57,-154,-142,-284,-251,-810,-778,-893,-881,-5685,-3511,-29970,-29973,-29976,-29975]} 1. d4 {[%emt 0:00:13]} d5 {[%emt 0:00:22]} 2. Nf3 {[%emt 0:00:18]} e6 {[%emt 0:00:24]} 3. Bf4 {[%emt 0:00:10]} Bd6 {[%emt 0:00:06]} 4. Bg3 {[%emt 0:00:20]} Ne7 {[%emt 0:00:46]} 5. e3 {[%emt 0:00:35][%cal Be2e3,Be3e4,Be4e5][%mdl 32]} O-O {[%emt 0:00:50]} 6. Bd3 {[%emt 0:00:59] D02: 1 d4 d5 2 Nf3 sidelines, including 2...Nf6 3 g3 and 2...Nf6 3 Bf4.} h6 {[%emt 0:00:53]} 7. Nbd2 {[%emt 0:01:03]} b6 {[%emt 0:01:07] [#]} 8. Qe2 $146 {[%emt 0:00:28] The position is equal.} ({Predecessor:} 8. O-O c5 9. c3 Ba6 10. Bxa6 Nxa6 11. Qe2 Nc7 12. e4 dxe4 13. Nxe4 Bxg3 14. hxg3 cxd4 15. Nxd4 {½-½ (64) Chitlange,S (2167)-Kozelov,R (2120) Chess.com INT 2020}) 8... a5 {[%emt 0:00:05]} 9. e4 {[%emt 0:01:26]} c5 {[%emt 0:04:13]} 10. e5 {[%emt 0:01:58]} Bc7 {[%emt 0:00:18]} 11. c3 {[%emt 0:00:48]} Ba6 {[%emt 0:01:56]} 12. Bf4 {[%emt 0:04:03]} Bxd3 {[%emt 0:04:55]} 13. Qxd3 {[%emt 0:00:07]} Nbc6 {[%emt 0:02:26]} 14. a3 {[%emt 0:00:36]} f6 {[%emt 0:02:01]} (14... c4 $15 15. Qe2 b5) 15. Bg3 {[%emt 0:01:34]} (15. exf6 $1 $11 {remains equal.} Bxf4 16. fxe7 Qxe7 17. O-O) 15... fxe5 $17 {[%emt 0:05:07]} 16. Nxe5 {[%emt 0:02:11]} Nxe5 {[%emt 0:00:38]} 17. dxe5 {[%emt 0:00:09]} Nc6 {[%emt 0:07:10]} 18. f4 {[%emt 0:03:17]} c4 {[%emt 0:05:02]} 19. Qg6 {[%emt 0:03:52]} Qd7 {[%emt 0:04:54]} 20. Rd1 {[%emt 0:01:26][%cal Od2c4]} b5 {[%emt 0:02:48]} 21. Ne4 {[%emt 0:02:33] aiming for Nc5.} Ne7 {[%emt 0:04:00]} 22. Qg4 {[%emt 0:00:45]} Nf5 {[%emt 0:00:26]} 23. Qg6 {[%emt 0:13:05]} Ne3 $36 {[%emt 0:09:06][%mdl 2048] Black has good play.} 24. Rd2 {[%emt 0:04:27]} Nxg2+ $1 {[%emt 0:03:22]} 25. Kd1 {[%emt 0:01:20]} (25. Rxg2 $15 dxe4 26. Qxe4) 25... Ne3+ {[%emt 0:12:52]} (25... Nxf4 $17 26. Bxf4 Qe8 27. Qxe8 Raxe8) 26. Ke2 $11 {[%emt 0:00:53]} Bb6 {[%emt 0:02:32][%cal Bc7b6,Bb6e3,Be3d4][%mdl 32] White must now prevent ...Nf5.} 27. Nf6+ {[%emt 0:01:02] [#]} (27. Bf2 $1 $11 Kh8 28. Bxe3 Bxe3 29. Kxe3 Qa7+ 30. Rd4 dxe4 31. Qxe6) 27... Rxf6 $1 $15 {[%emt 0:03:07]} 28. exf6 {[%emt 0:00:09] Hoping for Bf2.} Nf5 $1 {[%emt 0:00:04] And now ...Be3 would win.} (28... Qf7 $2 29. Qxf7+ Kxf7 30. Bf2 $18) 29. fxg7 {[%emt 0:02:26] [#]} (29. Re1 $15) 29... Be3 $1 $17 {[%emt 0:02:58]} 30. Rdd1 {[%emt 0:10:33] [#]} (30. Re1 $17) 30... d4 $1 $19 {[%emt 0:00:21] The board is on fire.} 31. cxd4 $2 {[%emt 0:00:45]} (31. Rhe1 Qd5 32. Bf2 d3+ 33. Kf1 Bxf2 34. Kxf2 Qc5+ 35. Kf1 Ne3+ 36. Rxe3 Qxe3 37. Qg4 (37. Re1 $2 Qxf4+ 38. Kg1 d2 $19)) 31... Qd5 {[%emt 0:00:17]} 32. Bf2 {[%emt 0:03:52]} Qe4 {[%emt 0:01:01] ( -> ...Qc2+)} 33. Qg1 {[%emt 0:06:46]} Nxd4+ {[%emt 0:01:46]} 34. Rxd4 {[%emt 0:04:07]} Bxd4+ {[%emt 0:00:05][%mdl 64] Discovered Attack} 35. Be3 {[%emt 0:01:04]} Rd8 {[%emt 0:02:11] Weighted Error Value: White=1.01/Black=0.10 (very precise)} 0-1

[Event "Kezmarok Chess Open 2022"]
[Site "Kezmarok"]
[Date "2022.10.01"]
[Round "9.9"]
[White "Kovac, Lubomir"]
[Black "Fizerova, Lucie"]
[Result "1/2-1/2"]
[ECO "D20"]
[WhiteElo "2091"]
[BlackElo "1779"]
[Annotator "TA"]
[PlyCount "42"]
[EventDate "2022.09.24"]
[EventType "swiss"]
[EventCountry "SVK"]
[SourceTitle "playchess.com"]
[Source "ChessBase"]
[SourceQuality "1"]
[TimeControl "40/5400+30:1800+30"]

{[%evp 15,42,11,18,0,4,-20,0,-14,1,-22,19,0,0,12,40,41,31,41,44,0,0,0,0,-9,-18,-25,-19,-20,-19]} 1. d4 {[%emt 0:00:05]} d5 {[%emt 0:00:29]} 2. c4 {[%emt 0:00:13]} dxc4 {[%emt 0:00:10]} 3. Nc3 {[%emt 0:01:10]} a6 {[%emt 0:00:57]} 4. a4 {[%emt 0:00:12]} Nf6 {[%emt 0:01:36]} 5. e3 {[%emt 0:05:44]} e6 {[%emt 0:00:28]} 6. Bxc4 {[%emt 0:00:11]} c5 {[%emt 0:00:17]} 7. Nf3 {[%emt 0:01:05]} Nc6 {[%emt 0:00:47]} 8. O-O {[%emt 0:01:09]} Be7 {[%emt 0:00:55]} 9. b3 {[%emt 0:05:12] D27: Queen's Gambit Accepted: Classical main line: 7 e4!? and 7 a4.} O-O {[%emt 0:01:55]} 10. Ne2 {[%emt 0:03:47]} b6 {[%emt 0:03:05]} 11. Bb2 {[%emt 0:01:32]} Bb7 {[%emt 0:02:15] [#]} 12. Ng3 $146 {[%emt 0:05:14]} ({Predecessor:} 12. Rc1 Rc8 13. Ng3 Qd7 14. Qe2 a5 15. Bb5 Rfd8 16. dxc5 Bxc5 17. Bxf6 gxf6 18. Nh4 {1-0 (29) Stavrianakis,I (1965)-Moutzouris,I (1275) Kalamata 2008}) 12... Nb4 {[%emt 0:03:48]} 13. Rc1 {[%emt 0:05:12]} Rc8 {[%emt 0:01:03]} 14. Qe2 {[%emt 0:00:38]} Rc7 {[%emt 0:04:54]} 15. dxc5 {[%emt 0:09:33]} Bxc5 {[%emt 0:02:00]} 16. e4 {[%emt 0:03:58]} Qe7 {[%emt 0:03:12]} 17. Bc3 {[%emt 0:08:25]} Rfc8 {[%emt 0:01:39][%cal Ob6b5]} 18. Be5 {[%emt 0:06:09]} Rd7 {[%emt 0:02:11]} 19. Rcd1 {[%emt 0:00:23] [#] aiming for Bxf6.} Rcd8 {[%emt 0:01:05][%cal Oc5f2] And now ...Bxf2+! would win.} 20. Rxd7 {[%emt 0:00:14]} Rxd7 {[%emt 0:00:27]} ({But not} 20... Qxd7 21. Bxf6 gxf6 22. Nh5 $14) 21. Bc3 {[%emt 0:02:06]} a5 {[%emt 0:01:26] Weighted Error Value: White=0.11 (very precise) /Black=0.07 (flawless)} 1/2-1/2

[Event "Kezmarok Chess Open 2022"]
[Site "Kezmarok"]
[Date "2022.10.01"]
[Round "9.10"]
[White "Rakovsky, Jakub"]
[Black "Rak, Martin"]
[Result "1/2-1/2"]
[ECO "B00"]
[WhiteElo "2012"]
[BlackElo "1805"]
[Annotator "TA"]
[PlyCount "34"]
[EventDate "2022.09.24"]
[EventType "swiss"]
[EventCountry "SVK"]
[SourceTitle "playchess.com"]
[Source "ChessBase"]
[SourceQuality "1"]
[TimeControl "40/5400+30:1800+30"]

{[%evp 19,34,17,24,-21,-10,-16,-13,-12,-6,-38,-36,-114,-114,-115,-120,-120,-100]} 1. e4 {[%emt 0:00:33]} b6 {[%emt 0:00:13]} 2. d4 {[%emt 0:02:27]} Bb7 {[%emt 0:00:28]} 3. Nc3 {[%emt 0:00:53]} e6 {[%emt 0:01:27]} 4. Nf3 {[%emt 0:04:04]} Bb4 {[%emt 0:01:56]} 5. Bd3 {[%emt 0:01:21]} Nf6 {[%emt 0:01:27]} 6. Qe2 {[%emt 0:08:43]} d5 {[%emt 0:01:23]} 7. exd5 {[%emt 0:03:20]} Nxd5 {[%emt 0:01:29]} 8. Bd2 {[%emt 0:04:49]} Nxc3 {[%emt 0:01:09]} 9. bxc3 {[%emt 0:00:52]} Be7 {[%emt 0:00:27]} 10. O-O {[%emt 0:01:01]} Nd7 {[%emt 0:04:43]} 11. Be4 {[%emt 0:04:19] B00: Queen's Fianchetto Defence, Nimzowitsch Defence.} (11. Rfd1) 11... Bxe4 {[%emt 0:01:33]} 12. Qxe4 {[%emt 0:00:02]} O-O {[%emt 0:01:10]} 13. Qc6 {[%emt 0:09:43] The position is equal.} Nf6 {[%emt 0:09:46] [#]} 14. c4 $146 {[%emt 0:06:20] Inhibits Qd5.} ({Predecessor:} 14. Rfd1 Qd6 15. Ne5 Rfd8 16. Bf4 Nd7 17. Be3 Nf6 18. Bf4 Nd7 19. Ng6 Qa3 20. Nxe7+ Qxe7 {0-1 (57) Harcaut,A (1545)-Fernandes,M (1853) Lisbon 2014}) 14... Qd6 {[%emt 0:02:19]} 15. Qxd6 {[%emt 0:06:37]} ({White should try} 15. Qa4 $15) 15... cxd6 $17 {[%emt 0:00:48] Black is better.} 16. Bg5 {[%emt 0:04:31]} Rac8 {[%emt 0:08:18]} 17. Nd2 {[%emt 0:02:46]} d5 {[%emt 0:11:05] White got outplayed after the opening.  Weighted Error Value: White=0.28 (precise) /Black=0.00 (flawless)} 1/2-1/2

[Event "Kezmarok Chess Open 2022"]
[Site "Kezmarok"]
[Date "2022.10.01"]
[Round "9.11"]
[White "Striskova, Lucia"]
[Black "Straka, Simon"]
[Result "1-0"]
[ECO "A05"]
[WhiteElo "1866"]
[BlackElo "1732"]
[Annotator "NA RC COMBH"]
[PlyCount "111"]
[EventDate "2022.09.24"]
[EventType "swiss"]
[EventCountry "SVK"]
[SourceTitle "playchess.com"]
[Source "ChessBase"]
[SourceQuality "1"]
[TimeControl "40/5400+30:1800+30"]

1. Nf3 Nf6 2. g3 g6 3. Bg2 Bg7 4. c4 c5 5. O-O Nc6 6. d4 cxd4 7. Nxd4 O-O 8. Nc3 Nxd4 9. Qxd4 d6 10. Qd3 Rb8 11. b3 b6 12. Bb2 Nd7 13. e4 Nc5 14. Qc2 Bb7 15. Rae1 f5 16. exf5 Bxg2 17. Kxg2 Rxf5 18. Nd5 e5 19. f4 Nd7 20. fxe5 Rxf1 21. Rxf1 Nxe5 22. Qf2 Rb7 23. Bxe5 Bxe5 24. Qf3 Rd7 25. Ne3 Kg7 26. Ng4 Qe7 27. Re1 Qg5 28. h4 Qe7 29. Qd5 Qf7 30. Qxf7+ Kxf7 31. Rxe5 h5 32. Re4 hxg4 33. Rxg4 Re7 34. Kf3 Re5 35. Rf4+ Kg7 36. Rd4 Re6 37. Re4 Rf6+ 38. Ke3 a5 39. Re7+ Kh6 40. g4 Rf1 41. Kd3 Ra1 42. a4 Rd1+ 43. Kc3 Rc1+ 44. Kd2 Rg1 45. Rb7 Rxg4 46. Rxb6 Rd4+ 47. Kc3 Rxh4 48. Rxd6 Rh3+ 49. Rd3 Rh5 50. b4 axb4+ 51. Kxb4 g5 52. a5 g4 53. a6 Kg6 54. a7 Rh8 55. Ra3 Ra8 56. Kb5 1-0

[Event "Kezmarok Chess Open 2022"]
[Site "Kezmarok"]
[Date "2022.10.01"]
[Round "9.12"]
[White "Velychko, Semen"]
[Black "Sekova, Olivia"]
[Result "1/2-1/2"]
[ECO "A45"]
[WhiteElo "1604"]
[BlackElo "1797"]
[Annotator "NA RC COMBH"]
[PlyCount "90"]
[EventDate "2022.09.24"]
[EventType "swiss"]
[EventCountry "SVK"]
[SourceTitle "playchess.com"]
[Source "ChessBase"]
[SourceQuality "1"]
[TimeControl "40/5400+30:1800+30"]

1. d4 Nf6 2. Nc3 d5 3. Bf4 a6 4. e3 e6 5. Nf3 c5 6. Be2 Nc6 7. O-O Bd6 8. dxc5 Bxf4 9. exf4 Qa5 10. Qd2 Qxc5 11. Na4 Qe7 12. Nb6 Rb8 13. a4 Qc5 14. a5 O-O 15. c3 Nxa5 16. Qd4 Nb3 17. Qxc5 Nxc5 18. Ne5 Ncd7 19. Nbxd7 Bxd7 20. g4 Bc6 21. Nxc6 bxc6 22. Rfb1 Rb3 23. Rxa6 c5 24. Ra3 Rfb8 25. Rxb3 Rxb3 26. Bd1 Rb8 27. f3 Kf8 28. Bc2 d4 29. cxd4 cxd4 30. Be4 Rb4 31. Kf2 Ke7 32. Ke2 Kd6 33. Kd3 e5 34. fxe5+ Kxe5 35. b3 Nd7 36. Kc2 Nc5 37. Bd3 Kf4 38. Bc4 f6 39. Rf1 Nd7 40. Kd3 Ne5+ 41. Kxd4 Rb8 42. Bd5 Rd8 43. Kc5 Rc8+ 44. Kd4 Rc2 45. h4 Rd2+ 1/2-1/2

[Event "Kezmarok Chess Open 2022"]
[Site "Kezmarok"]
[Date "2022.10.01"]
[Round "9.13"]
[White "Kapolkova, Greta"]
[Black "Mazak, Ryan"]
[Result "0-1"]
[ECO "C48"]
[WhiteElo "1723"]
[BlackElo "1590"]
[Annotator "NA COMBH"]
[PlyCount "68"]
[EventDate "2022.09.24"]
[EventType "swiss"]
[EventCountry "SVK"]
[SourceTitle "playchess.com"]
[Source "ChessBase"]
[SourceQuality "1"]
[TimeControl "40/5400+30:1800+30"]

1. e4 {[%emt 0:00:03]} e5 {[%emt 0:00:10]} 2. Nf3 {[%emt 0:00:07]} Nf6 {[%emt 0:00:10]} 3. Nc3 {[%emt 0:00:12]} Nc6 {[%emt 0:00:56]} 4. Bb5 {[%emt 0:00:21]} Bc5 {[%emt 0:02:48]} 5. d3 {[%emt 0:14:57]} a6 {[%emt 0:05:31]} 6. Ba4 {[%emt 0:02:08]} b5 {[%emt 0:01:58]} 7. Bb3 {[%emt 0:03:04]} Bb7 {[%emt 0:11:23]} 8. Bg5 {[%emt 0:01:10]} Be7 {[%emt 0:06:41]} 9. Qd2 {[%emt 0:08:24]} d6 {[%emt 0:02:01]} 10. h3 {[%emt 0:04:09]} Qd7 {[%emt 0:03:19]} 11. a3 {[%emt 0:01:07]} Nd4 {[%emt 0:01:01]} 12. Nxd4 {[%emt 0:04:11]} exd4 {[%emt 0:00:16]} 13. Ne2 {[%emt 0:00:14]} c5 {[%emt 0:02:25]} 14. Bxf6 {[%emt 0:02:35]} Bxf6 {[%emt 0:01:18]} 15. f4 {[%emt 0:04:12]} Rc8 {[%emt 0:03:25]} 16. c4 {[%emt 0:03:21]} Bd8 {[%emt 0:03:51]} 17. Bc2 {[%emt 0:05:02]} bxc4 18. dxc4 {[%emt 0:04:49]} Qe6 {[%emt 0:01:24]} 19. Qd3 {[%emt 0:01:58]} Ba5+ {[%emt 0:02:42]} 20. Kf2 {[%emt 0:00:10]} Qg6 {[%emt 0:02:19]} 21. g3 {[%emt 0:09:08]} O-O {[%emt 0:04:44]} 22. g4 {[%emt 0:08:28]} Rfe8 {[%emt 0:00:59]} 23. Kf3 {[%emt 0:01:00]} Bxe4+ {[%emt 0:00:07]} 24. Qxe4 {[%emt 0:00:07]} Rxe4 {[%emt 0:00:14]} 25. Bxe4 Qe6 26. b3 {[%emt 0:01:16]} g6 {[%emt 0:01:18]} 27. Rhg1 {[%emt 0:01:00]} Kf8 {[%emt 0:00:40]} 28. b4 {[%emt 0:06:55]} f5 {[%emt 0:00:56]} 29. gxf5 {[%emt 0:01:41]} gxf5 {[%emt 0:00:24]} 30. Bxf5 {[%emt 0:01:17]} Qxf5 {[%emt 0:01:15]} 31. bxa5 {[%emt 0:00:58]} Qd3+ {[%emt 0:00:24]} 32. Kf2 {[%emt 0:00:27]} Qe3+ {[%emt 0:00:03]} 33. Kf1 {[%emt 0:00:31]} Re8 {[%emt 0:00:36]} 34. Rg2 {[%emt 0:01:25]} d3 0-1

[Event "Kezmarok Chess Open 2022"]
[Site "Kezmarok"]
[Date "2022.10.01"]
[Round "9.14"]
[White "Ropovik, Samuel"]
[Black "Juracak, David"]
[Result "1-0"]
[ECO "C42"]
[WhiteElo "1497"]
[BlackElo "1708"]
[Annotator "NA RC COMBH"]
[PlyCount "35"]
[EventDate "2022.09.24"]
[EventType "swiss"]
[EventCountry "SVK"]
[SourceTitle "playchess.com"]
[Source "ChessBase"]
[SourceQuality "1"]
[TimeControl "40/5400+30:1800+30"]

1. e4 {[%emt 0:00:01]} e5 {[%emt 0:00:06]} 2. Nf3 {[%emt 0:00:05]} Nf6 {[%emt 0:00:05]} 3. Nxe5 {[%emt 0:00:09]} d6 {[%emt 0:00:07]} 4. Nf3 {[%emt 0:00:06]} Nxe4 {[%emt 0:00:08]} 5. c4 {[%emt 0:00:01]} Bf5 {[%emt 0:08:02]} 6. Nc3 {[%emt 0:00:52]} Nc6 {[%emt 0:01:47]} 7. Qe2 {[%emt 0:09:23]} Qd7 {[%emt 0:16:47]} 8. d3 {[%emt 0:03:28]} O-O-O {[%emt 0:00:06]} 9. dxe4 {[%emt 0:00:27]} Re8 {[%emt 0:00:12]} 10. Be3 {[%emt 0:02:36]} Bxe4 {[%emt 0:01:14]} 11. Nxe4 {[%emt 0:02:17]} Rxe4 {[%emt 0:00:14]} 12. Qc2 {[%emt 0:00:39]} Qe6 {[%emt 0:02:51]} 13. Be2 {[%emt 0:00:55]} Be7 {[%emt 0:01:01]} 14. a3 {[%emt 0:07:12]} g6 {[%emt 0:06:44]} 15. Bd3 {[%emt 0:05:05]} Rg4 {[%emt 0:06:30]} 16. g3 {[%emt 0:03:42]} Ne5 {[%emt 0:07:01]} 17. Nxe5 {[%emt 0:00:42]} Qxe5 {[%emt 0:00:12]} 18. Qe2 {[%emt 0:03:10]} 1-0